bitfinex/quotes_BTCUSD_20240623
["timestamp","ask_amount","ask_price","bid_price","bid_amount"]
[1719109464442,5.86086116,64532.0,64531.0,0.00289427]
[1719109467644,5.76522904,64532.0,64531.0,0.00289427]
[1719109467851,2.10262344,64532.0,64531.0,0.08709427]
[1719109468057,1.97173413,64532.0,64531.0,0.08709427]
[1719109468258,2.00782501,64532.0,64531.0,0.08709427]
[1719109468483,6.49227475,64532.0,64531.0,0.08709427]
[1719109469544,6.49176096,64532.0,64531.0,0.08709427]
[1719109469882,6.4679991,64532.0,64531.0,0.08709427]
[1719109470646,6.2830637,64532.0,64531.0,0.08709427]
[1719109470845,6.44967198,64532.0,64531.0,0.08709427]
[1719109473954,6.44982128,64532.0,64531.0,0.08709427]
[1719109477020,6.44975341,64532.0,64531.0,0.08709427]
[1719109477401,6.35453322,64532.0,64531.0,0.08709427]
[1719109477602,6.44975347,64532.0,64531.0,0.08709427]
[1719109478067,6.44975347,64532.0,64531.0,0.00289427]
[1719109478634,6.44977436,64532.0,64531.0,0.00289427]
[1719109479019,2.10280636,64532.0,64531.0,0.00289427]
[1719109479228,6.12910436,64532.0,64531.0,0.00289427]
[1719109479375,6.17626836,64532.0,64531.0,0.00289427]
[1719109479721,6.16577436,64532.0,64531.0,0.00289427]
[1719109481983,6.25022188,64532.0,64531.0,0.00289427]
[1719109483031,6.17884398,64532.0,64531.0,0.00289427]
[1719109483372,6.25057425,64532.0,64531.0,0.00289427]
[1719109485956,6.08351122,64532.0,64531.0,0.00289427]
[1719109486162,6.25004919,64532.0,64531.0,0.00289427]
[1719109486369,6.08351122,64532.0,64531.0,0.00289427]
[1719109486592,6.15487327,64532.0,64531.0,0.00289427]
[1719109486795,6.25004889,64532.0,64531.0,0.00289427]
[1719109489223,6.24993114,64532.0,64531.0,0.00289427]
[1719109489825,2.18696314,64532.0,64531.0,0.00289427]
[1719109490071,7.07168914,64532.0,64531.0,0.00289427]
[1719109490186,2.18696314,64532.0,64531.0,0.00289427]
[1719109490387,7.07168914,64532.0,64531.0,0.00289427]
[1719109490583,2.18696314,64532.0,64531.0,0.00289427]
[1719109490828,7.07168914,64532.0,64531.0,0.00289427]
[1719109492492,7.07191419,64532.0,64531.0,0.00289427]
[1719109495387,6.8208217,64532.0,64531.0,0.00289427]
[1719109495583,6.98726122,64532.0,64531.0,0.00289427]
[1719109495807,6.93365899,64532.0,64531.0,0.00289427]
[1719109496082,6.93365965,64532.0,64531.0,0.00289427]
[1719109496303,6.98726465,64532.0,64531.0,0.00289427]
[1719109498626,6.8208217,64532.0,64531.0,0.00289427]
[1719109498818,6.98546099,64532.0,64531.0,0.00289427]
[1719109499417,7.01424161,64532.0,64531.0,0.00289427]
[1719109499637,6.91930161,64532.0,64531.0,0.00289427]
[1719109500395,6.91924261,64532.0,64531.0,0.00289427]
[1719109501140,7.04531009,64532.0,64531.0,0.00289427]
[1719109501774,7.01652947,64532.0,64531.0,0.00289427]
[1719109503972,6.99949434,64532.0,64531.0,0.00289427]
[1719109504273,7.01653899,64532.0,64531.0,0.00289427]
[1719109504447,6.92193439,64532.0,64531.0,0.00320434]
[1719109504646,7.16909313,64532.0,64531.0,0.00320434]
[1719109506603,7.32289313,64532.0,64531.0,0.00320434]
[1719109506941,7.15825626,64532.0,64531.0,0.00320434]
[1719109507147,7.33995134,64532.0,64531.0,0.00320434]
[1719109507547,7.33395134,64532.0,64531.0,0.00220434]
[1719109507751,7.24935134,64532.0,64531.0,0.00220434]
[1719109508016,7.26335134,64532.0,64531.0,0.00320434]
[1719109508785,7.25635134,64532.0,64531.0,0.00220434]
[1719109508956,7.24235134,64532.0,64531.0,0.00120434]
[1719109509160,7.0987972,64532.0,64531.0,0.00120434]
[1719109510081,7.09949043,64532.0,64531.0,0.00120434]
[1719109510289,7.10749043,64532.0,64531.0,0.00120434]
[1719109513287,7.00752822,64532.0,64531.0,0.00120434]
[1719109513501,7.10742503,64532.0,64531.0,0.00120434]
[1719109513697,7.00752822,64532.0,64531.0,0.00120434]
[1719109513899,7.10742503,64532.0,64531.0,0.00120434]
[1719109514429,7.03822503,64532.0,64531.0,0.00120434]
[1719109514678,7.19077917,64532.0,64531.0,0.00120434]
[1719109514878,7.34457917,64532.0,64531.0,0.00120434]
[1719109515088,7.45997917,64532.0,64531.0,0.00120434]
[1719109515293,7.49089017,64532.0,64531.0,0.00120434]
[1719109516397,7.46707953,64532.0,64531.0,0.00120434]
[1719109516598,7.49023943,64532.0,64531.0,0.00120434]
[1719109517801,7.29023943,64532.0,64531.0,0.00120434]
[1719109517932,2.55420143,64532.0,64531.0,0.00120434]
[1719109518135,7.43892743,64532.0,64531.0,0.00120434]
[1719109519303,7.48070915,64532.0,64531.0,0.00120434]
[1719109519503,7.6397423,64532.0,64531.0,0.00120434]
[1719109520387,7.6307423,64532.0,64531.0,0.00120434]
[1719109520807,7.4227423,64532.0,64531.0,0.00120434]
[1719109521226,7.4327423,64532.0,64531.0,0.00120434]
[1719109521432,7.20558816,64532.0,64531.0,0.00120434]
[1719109521704,7.05718616,64532.0,64531.0,0.00120434]
[1719109522397,7.05707137,64532.0,64531.0,0.00120434]
[1719109522808,6.99802055,64532.0,64531.0,0.00120434]
[1719109523012,7.0202637,64532.0,64531.0,0.00120434]
[1719109523595,6.9510637,64532.0,64531.0,0.00120434]
[1719109525395,6.76869112,64532.0,64531.0,0.00120434]
[1719109525535,6.92759953,64532.0,64531.0,0.00120434]
[1719109525900,6.95098054,64532.0,64531.0,0.00120434]
[1719109529864,6.95088566,64532.0,64531.0,0.00120434]
[1719109531824,7.20238144,64532.0,64531.0,0.00120434]
[1719109532023,7.00238144,64532.0,64531.0,0.00120434]
[1719109532224,7.13819708,64532.0,64531.0,0.00120434]
[1719109532448,7.10255372,64532.0,64531.0,0.00120434]
[1719109532704,7.20238436,64532.0,64531.0,0.00120434]
[1719109533546,7.2012428,64532.0,64531.0,0.00120434]
[1719109533934,7.0012428,64532.0,64531.0,0.00120434]
[1719109534849,7.2012428,64532.0,64531.0,1e-08]
[1719109535067,2.65883841,64532.0,64531.0,1e-08]
[1719109536334,1.514698,64530.0,64529.0,0.000935]
[1719109536549,1.514698,64530.0,64521.0,0.0906]
[1719109536550,0.584943,64524.0,64521.0,0.0906]
[1719109536766,5.78144345,64524.0,64521.0,0.0906]
[1719109536975,5.30241845,64524.0,64521.0,0.0906]
[1719109537142,5.45497259,64524.0,64521.0,0.0906]
[1719109537312,5.42997559,64524.0,64521.0,0.0906]
[1719109537699,5.52943779,64524.0,64521.0,0.0906]
[1719109537906,6.27844726,64524.0,64521.0,0.0906]
[1719109538116,6.45981352,64524.0,64521.0,0.0906]
[1719109538316,6.46981352,64524.0,64521.0,0.0906]
[1719109538520,6.46381352,64524.0,64521.0,0.0906]
[1719109538964,6.46381352,64524.0,64503.0,0.009361]
[1719109538965,6.46881352,64524.0,64503.0,0.009361]
[1719109539178,6.62601352,64524.0,64516.0,0.0906]
[1719109539379,1.204916,64521.0,64516.0,0.0906]
[1719109539580,6.70855788,64521.0,64516.0,0.0906]
[1719109539791,6.80883888,64521.0,64516.0,0.0906]
[1719109540216,6.80883888,64521.0,64520.0,3.93945198]
[1719109540922,6.90844538,64521.0,64520.0,3.93945198]
[1719109541131,7.00765391,64521.0,64520.0,3.93945198]
[1719109541380,7.07314687,64521.0,64520.0,3.93945198]
[1719109541546,6.90761405,64521.0,64520.0,3.93945198]
[1719109541758,6.981107,64521.0,64520.0,3.93945198]
[1719109542008,7.09714684,64521.0,64520.0,3.93945198]
[1719109542851,6.92758584,64521.0,64520.0,3.93945198]
[1719109543855,6.92758584,64521.0,64520.0,3.92324862]
[1719109544857,6.71410584,64521.0,64520.0,3.92324862]
[1719109545063,6.71410584,64521.0,64520.0,4.01464862]
[1719109545064,6.4894107,64521.0,64520.0,4.01464862]
[1719109545258,5.9068217,64521.0,64520.0,4.01464862]
[1719109547195,5.90808318,64521.0,64520.0,4.01464862]
[1719109548187,5.93620694,64521.0,64520.0,4.01464862]
[1719109548334,5.91620694,64521.0,64520.0,4.01464862]
[1719109549538,5.93620694,64521.0,64520.0,4.01464862]
[1719109550145,5.91016876,64521.0,64520.0,4.01464862]
[1719109550366,5.93682292,64521.0,64520.0,4.01464862]
[1719109553238,5.84803399,64521.0,64520.0,4.01464862]
[1719109553452,5.93635659,64521.0,64520.0,4.01464862]
[1719109555066,5.93630425,64521.0,64520.0,4.01464862]
[1719109556432,5.74543188,64521.0,64520.0,4.01464862]
[1719109556636,5.93629077,64521.0,64520.0,4.01464862]
[1719109557010,2.08933577,64521.0,64520.0,4.01464862]
[1719109557227,6.65803077,64521.0,64520.0,4.01464862]
[1719109557401,6.80665077,64521.0,64520.0,4.01464862]
[1719109557583,6.62196577,64521.0,64520.0,4.01464862]
[1719109559519,6.49320665,64521.0,64520.0,4.01464862]
[1719109559679,6.62239552,64521.0,64520.0,4.01464862]
[1719109559882,6.65787773,64521.0,64520.0,4.01464862]
[1719109560084,6.65787773,64521.0,64520.0,4.01558362]
[1719109560085,6.59577796,64521.0,64520.0,4.01558362]
[1719109560374,6.62324554,64521.0,64520.0,4.01558362]
[1719109560734,6.62324554,64521.0,64520.0,3.92418362]
[1719109561782,6.42182888,64521.0,64520.0,3.92418362]
[1719109561962,6.8133642,64521.0,64520.0,3.92418362]
[1719109562500,6.6325592,64521.0,64520.0,3.92418362]
[1719109563083,6.4325592,64521.0,64520.0,3.92418362]
[1719109563277,6.51852224,64521.0,64520.0,3.92418362]
[1719109564768,6.32698692,64521.0,64520.0,3.92418362]
[1719109564927,6.5187185,64521.0,64520.0,3.92418362]
[1719109567953,6.32698692,64521.0,64520.0,3.92418362]
[1719109568103,6.41563674,64521.0,64520.0,3.92418362]
[1719109568301,6.55364939,64521.0,64520.0,3.92418362]
[1719109568514,6.51817057,64521.0,64520.0,3.92418362]
[1719109569453,6.67907709,64521.0,64520.0,3.88018362]
[1719109569823,6.59311405,64521.0,64520.0,3.88018362]
[1719109570024,6.50351405,64521.0,64520.0,3.88018362]
[1719109570816,6.24102388,64521.0,64520.0,3.88018362]
[1719109571023,6.37025086,64521.0,64520.0,3.88018362]
[1719109571225,6.43237111,64521.0,64520.0,3.88018362]
[1719109573851,6.24102388,64521.0,64520.0,3.88018362]
[1719109574068,6.58564281,64521.0,64520.0,3.88018362]
[1719109575804,2.24394581,64521.0,64520.0,3.88018362]
[1719109576005,6.64925467,64521.0,64520.0,3.88018362]
[1719109576207,6.64487467,64521.0,64520.0,3.88018362]
[1719109576642,6.62400167,64521.0,64520.0,3.88018362]
[1719109577068,6.43193688,64521.0,64520.0,3.88018362]
[1719109577372,6.62377135,64521.0,64520.0,3.88018362]
[1719109578626,6.77632549,64521.0,64520.0,3.88018362]
[1719109579445,6.64666149,64521.0,64520.0,3.88018362]
[1719109579983,6.49410735,64521.0,64520.0,3.88018362]
[1719109580200,6.49401771,64521.0,64520.0,3.88018362]
[1719109580559,6.47401771,64521.0,64520.0,3.88018362]
[1719109580769,6.49401771,64521.0,64520.0,3.88018362]
[1719109581427,7.27179371,64521.0,64520.0,3.67162362]
[1719109581729,7.70411559,64521.0,64520.0,3.67162362]
[1719109581931,7.47547185,64521.0,64520.0,3.67162362]
[1719109583021,7.28372702,64521.0,64520.0,3.67162362]
[1719109583157,7.6782388,64521.0,64520.0,3.67162362]
[1719109583363,7.4767452,64521.0,64520.0,3.67162362]
[1719109583808,7.3265682,64521.0,64520.0,3.67162362]
[1719109584008,7.54132198,64521.0,64520.0,3.67162362]
[1719109584170,7.32732198,64521.0,64520.0,3.67162362]
[1719109584370,7.35532198,64521.0,64520.0,3.67162362]
[1719109584604,7.34132198,64521.0,64520.0,3.67162362]
[1719109585051,7.35532198,64521.0,64520.0,3.67162362]
[1719109586042,7.35504242,64521.0,64520.0,3.67162362]
[1719109586243,7.12628158,64521.0,64520.0,3.67162362]
[1719109586467,7.05042549,64521.0,64520.0,3.67162362]
[1719109586674,7.32628422,64521.0,64520.0,3.67162362]
[1719109586872,7.31228422,64521.0,64520.0,3.67162362]
[1719109587317,7.32628422,64521.0,64520.0,3.67162362]
[1719109589098,7.13355002,64521.0,64520.0,3.67162362]
[1719109589333,7.26355644,64521.0,64520.0,3.67162362]
[1719109589542,7.32608144,64521.0,64520.0,3.67162362]
[1719109589947,7.32605254,64521.0,64520.0,3.67162362]
[1719109592402,7.32601009,64521.0,64520.0,3.67162362]
[1719109595560,7.32602228,64521.0,64520.0,3.67162362]
[1719109595817,7.16060011,64521.0,64520.0,3.67162362]
[1719109596028,7.35306889,64521.0,64520.0,3.67162362]
[1719109596257,7.3260188,64521.0,64520.0,3.67162362]
[1719109597171,7.32600984,64521.0,64520.0,3.67162362]
[1719109598480,7.23355002,64521.0,64520.0,3.67162362]
[1719109598681,7.425985,64521.0,64520.0,3.67162362]
[1719109599241,7.574861,64521.0,64520.0,3.61882362]
[1719109599515,7.728361,64521.0,64520.0,3.61882362]
[1719109601635,7.72844992,64521.0,64520.0,3.57782362]
[1719109602902,7.89174992,64521.0,64520.0,3.57782362]
[1719109604741,7.89177519,64521.0,64520.0,3.57782362]
[1719109605145,7.92722227,64521.0,64520.0,3.57782362]
[1719109605427,7.89175264,64521.0,64520.0,3.57782362]
[1719109605846,7.89175264,64521.0,64520.0,3.55562362]
[1719109606504,7.89173052,64521.0,64520.0,3.55562362]
[1719109607862,7.86468015,64521.0,64520.0,3.55562362]
[1719109608068,7.89173071,64521.0,64520.0,3.55562362]
[1719109608711,7.89173071,64521.0,64520.0,3.51862362]
[1719109610863,7.69922602,64521.0,64520.0,3.51862362]
[1719109611102,8.02188026,64521.0,64520.0,3.51862362]
[1719109611292,7.70366179,64521.0,64520.0,3.51862362]
[1719109611726,7.85864979,64521.0,64520.0,3.51862362]
[1719109613611,7.85864979,64521.0,64520.0,3.50025362]
[1719109613818,7.85864979,64521.0,64520.0,3.39979362]
[1719109614070,7.66601644,64521.0,64520.0,3.39979362]
[1719109614187,7.8587553,64521.0,64520.0,3.39979362]
[1719109614394,7.76902454,64521.0,64520.0,3.39979362]
[1719109614613,8.1905841,64521.0,64520.0,3.28484362]
[1719109614819,8.087576,64521.0,64520.0,3.28484362]
[1719109615639,8.08784476,64521.0,64520.0,3.28484362]
[1719109617092,7.66601644,64521.0,64520.0,3.28484362]
[1719109617355,8.0879064,64521.0,64520.0,3.28484362]
[1719109618603,8.0879064,64521.0,64520.0,3.17084362]
[1719109618604,7.85912127,64521.0,64520.0,3.17084362]
[1719109620296,7.66601644,64521.0,64520.0,3.13284362]
[1719109620497,7.85949109,64521.0,64520.0,2.63474362]
[1719109620634,7.85949109,64521.0,64520.0,2.42077847]
[1719109620841,8.16946709,64521.0,64520.0,2.32355383]
[1719109621279,8.16946709,64521.0,64520.0,2.29955383]
[1719109622481,7.97599244,64521.0,64520.0,2.29955383]
[1719109622682,8.17074434,64521.0,64520.0,2.29955383]
[1719109622861,7.97599244,64521.0,64520.0,2.29955383]
[1719109623065,8.17074434,64521.0,64520.0,2.29955383]
[1719109623924,8.17074434,64521.0,64520.0,2.28112824]
[1719109624128,8.17074434,64521.0,64520.0,2.23112824]
[1719109624930,8.04072345,64521.0,64520.0,2.23112824]
[1719109625308,8.04072345,64521.0,64520.0,2.18312824]
[1719109625650,3.68435121,64521.0,64520.0,2.18312824]
[1719109625849,3.78797788,64521.0,64520.0,2.18312824]
[1719109626146,3.78797788,64521.0,64520.0,2.16212824]
[1719109626349,3.78797788,64521.0,64520.0,2.15912824]
[1719109626350,8.67270388,64521.0,64520.0,2.15912824]
[1719109627146,8.67270388,64521.0,64520.0,2.15712824]
[1719109627788,8.67270388,64521.0,64520.0,2.01080824]
[1719109627914,8.67270388,64521.0,64520.0,1.99580824]
[1719109628714,8.6725752,64521.0,64520.0,1.99580824]
[1719109629168,8.6725752,64521.0,64520.0,1.98080824]
[1719109630491,8.6725752,64521.0,64520.0,1.96980824]
[1719109630921,8.6725752,64521.0,64520.0,1.95280824]
[1719109631716,8.6725752,64521.0,64520.0,1.94880824]
[1719109631894,8.60901614,64521.0,64520.0,1.83380824]
[1719109632102,8.67210199,64521.0,64520.0,1.83380824]
[1719109632301,8.60901557,64521.0,64520.0,1.83380824]
[1719109632601,8.67210114,64521.0,64520.0,1.83380824]
[1719109633502,8.67199683,64521.0,64520.0,1.83380824]
[1719109634951,8.67197623,64521.0,64520.0,1.83380824]
[1719109636365,8.67196984,64521.0,64520.0,1.83380824]
[1719109636992,8.03561584,64521.0,64520.0,1.81850824]
[1719109637168,8.03561584,64521.0,64520.0,1.79450824]
[1719109637394,7.97451884,64521.0,64520.0,1.79450824]
[1719109638151,7.80058317,64521.0,64520.0,1.79450824]
[1719109638366,7.72481221,64521.0,64520.0,1.75450824]
[1719109638570,7.80058384,64521.0,64520.0,1.75450824]
[1719109638795,7.80058384,64521.0,64520.0,1.66150824]
[1719109640710,7.80058384,64521.0,64520.0,1.65450824]
[1719109641080,7.6340757,64521.0,64520.0,1.65450824]
[1719109641267,7.80062576,64521.0,64520.0,1.65450824]
[1719109641497,7.60639855,64521.0,64520.0,1.65450824]
[1719109641667,7.80062938,64521.0,64520.0,1.65450824]
[1719109642222,7.80062938,64521.0,64520.0,1.63050824]
[1719109642772,7.80062938,64521.0,64520.0,1.57378824]
[1719109643513,7.80062938,64521.0,64520.0,1.56658824]
[1719109644236,7.66951942,64521.0,64520.0,1.56658824]
[1719109644542,7.80067281,64521.0,64520.0,1.56658824]
[1719109645960,7.98084981,64521.0,64520.0,1.56658824]
[1719109646710,7.94478381,64521.0,64520.0,1.56658824]
[1719109647382,7.94470936,64521.0,64520.0,1.56658824]
[1719109647729,7.65477936,64521.0,64520.0,1.56658824]
[1719109647933,7.63571336,64521.0,64520.0,1.49958824]
[1719109648140,7.63571336,64521.0,64520.0,1.44858824]
[1719109650092,7.6353248,64521.0,64520.0,1.44858824]
[1719109650589,7.63535309,64521.0,64520.0,1.44858824]
[1719109650798,7.53203207,64521.0,64520.0,1.44858824]
[1719109650991,7.69834122,64521.0,64520.0,1.44858824]
[1719109651314,7.73869719,64521.0,64520.0,1.44858824]
[1719109652256,7.7111244,64521.0,64520.0,1.44858824]
[1719109652447,7.7386487,64521.0,64520.0,1.44858824]
[1719109653756,7.87740141,64521.0,64520.0,1.44858824]
[1719109654053,7.90492564,64521.0,64520.0,1.44858824]
[1719109656450,3.90311464,64521.0,64520.0,1.44858824]
[1719109656651,3.87557675,64521.0,64520.0,1.44858824]
[1719109656857,8.13257886,64521.0,64520.0,1.44858824]
[1719109657242,8.12080586,64521.0,64520.0,1.44858824]
[1719109657474,8.05490086,64521.0,64520.0,1.44858824]
[1719109660075,8.05511707,64521.0,64520.0,1.44858824]
[1719109660404,8.1939244,64521.0,64520.0,1.44858824]
[1719109660620,8.05511707,64521.0,64520.0,1.44858824]
[1719109665263,8.05511707,64521.0,64520.0,1.44728911]
[1719109666214,7.88885472,64521.0,64520.0,1.44728911]
[1719109666439,7.78552108,64521.0,64520.0,1.44728911]
[1719109669082,7.59150955,64521.0,64520.0,1.44728911]
[1719109669280,7.7579156,64521.0,64520.0,1.44728911]
[1719109669507,7.59150955,64521.0,64520.0,1.44728911]
[1719109669710,7.72248456,64521.0,64520.0,1.44728911]
[1719109669989,7.78551279,64521.0,64520.0,1.44728911]
[1719109670863,7.785566,64521.0,64520.0,1.44728911]
[1719109675274,7.785566,64521.0,64520.0,1.42448911]
[1719109675477,7.78550153,64521.0,64520.0,1.42248911]
[1719109676092,7.78550153,64521.0,64520.0,1.41948911]
[1719109676272,7.78550153,64521.0,64520.0,1.33848911]
[1719109677715,7.78550153,64521.0,64520.0,1.33448911]
[1719109678424,7.59150955,64521.0,64520.0,1.33448911]
[1719109678806,7.78558876,64521.0,64520.0,1.33448911]
[1719109678937,7.7854178,64521.0,64520.0,1.33448911]
[1719109679839,7.7854178,64521.0,64520.0,1.33148911]
[1719109681076,7.59150955,64521.0,64520.0,1.32948911]
[1719109681284,7.05624616,64521.0,64520.0,1.32948911]
[1719109681508,7.15959909,64521.0,64520.0,1.52328911]
[1719109683849,6.96567941,64521.0,64520.0,1.52328911]
[1719109684046,7.16928617,64521.0,64520.0,1.52328911]
[1719109684447,7.3630456,64521.0,64520.0,1.52328911]
[1719109685983,7.21049146,64521.0,64520.0,1.52328911]
[1719109687004,7.21046965,64521.0,64520.0,1.52328911]
[1719109687410,7.1041391,64521.0,64520.0,1.52328911]
[1719109687752,7.21034625,64521.0,64520.0,1.52328911]
[1719109688514,7.0068847,64521.0,64520.0,1.52328911]
[1719109688692,7.36269845,64521.0,64520.0,1.52328911]
[1719109690105,7.22251527,64521.0,64520.0,1.52328911]
[1719109690321,7.35358296,64521.0,64520.0,1.52328911]
[1719109691241,7.35358296,64521.0,64520.0,1.43568911]
[1719109693241,7.25006294,64521.0,64520.0,1.43568911]
[1719109693443,7.35344101,64521.0,64520.0,1.43568911]
[1719109695168,8.08636001,64521.0,64520.0,1.43568911]
[1719109696246,7.98287704,64521.0,64520.0,1.43568911]
[1719109696449,8.08620911,64521.0,64520.0,1.43568911]
[1719109696698,7.89235784,64521.0,64520.0,1.43568911]
[1719109696867,8.05866531,64521.0,64520.0,1.43568911]
[1719109697393,8.08620805,64521.0,64520.0,1.43568911]
[1719109699345,7.89235784,64521.0,64520.0,1.43568911]
[1719109699544,8.08622409,64521.0,64520.0,1.43568911]
[1719109701115,8.08628117,64521.0,64520.0,1.43568911]
[1719109701575,8.08628117,64521.0,64520.0,1.39069139]
[1719109702467,7.91981629,64521.0,64520.0,1.39069139]
[1719109702665,8.08597369,64521.0,64520.0,1.39069139]
[1719109705481,7.89235784,64521.0,64520.0,1.19249139]
[1719109705710,8.08596383,64521.0,64520.0,1.19249139]
[1719109705951,7.89235784,64521.0,64520.0,1.19249139]
[1719109706152,8.05850938,64521.0,64520.0,1.19249139]
[1719109706354,8.03406467,64521.0,64520.0,1.19249139]
[1719109706558,8.08596467,64521.0,64520.0,1.19249139]
[1719109708660,8.10188802,64521.0,64520.0,1.19249139]
[1719109709862,8.08788802,64521.0,64520.0,1.19249139]
[1719109710071,7.87835784,64521.0,64520.0,1.19114932]
[1719109710269,8.08747352,64521.0,64520.0,1.19114932]
[1719109710744,8.10147352,64521.0,64520.0,1.19114932]
[1719109711513,8.08747352,64521.0,64520.0,1.19114932]
[1719109711711,8.07347352,64521.0,64520.0,1.19114932]
[1719109711890,8.08747352,64521.0,64520.0,1.19114932]
[1719109712492,8.11575463,64521.0,64520.0,1.19114932]
[1719109713128,8.12975463,64521.0,64520.0,1.19114932]
[1719109713533,8.11575463,64521.0,64520.0,1.19114932]
[1719109713955,8.12975463,64521.0,64520.0,1.19114932]
[1719109714593,8.05295163,64521.0,64520.0,1.19114932]
[1719109715206,7.91203088,64521.0,64520.0,1.19114932]
[1719109715405,7.89868096,64521.0,64520.0,1.19114932]
[1719109715658,7.89882778,64521.0,64520.0,1.19114932]
[1719109716011,7.89882778,64521.0,64520.0,1.30884932]
[1719109716451,7.89883115,64521.0,64520.0,1.30884932]
[1719109717035,7.84711015,64521.0,64520.0,1.30884932]
[1719109717392,7.59397115,64521.0,64520.0,1.30884932]
[1719109718013,7.1261776,64521.0,64520.0,1.30884932]
[1719109719789,7.0640776,64521.0,64520.0,1.30884932]
[1719109721494,7.1578776,64521.0,64520.0,0.65374455]
[1719109724173,7.1578776,64521.0,64520.0,0.62074455]
[1719109724743,7.22622806,64521.0,64520.0,0.62074455]
[1719109724944,7.15788318,64521.0,64520.0,0.62074455]
[1719109725331,7.15788318,64521.0,64520.0,0.58301007]
[1719109725739,7.12488505,64521.0,64520.0,0.58301007]
[1719109725955,7.06436703,64521.0,64520.0,0.58301007]
[1719109726733,2.77795703,64521.0,64520.0,0.58301007]
[1719109727357,7.66254245,64521.0,64520.0,0.58301007]
[1719109728607,7.66254245,64521.0,64520.0,0.57863721]
[1719109728809,7.46058645,64521.0,64520.0,0.57863721]
[1719109729009,7.37129345,64521.0,64520.0,0.57863721]
[1719109730271,7.36643918,64521.0,64520.0,0.57863721]
[1719109730853,7.35504218,64521.0,64520.0,0.57863721]
[1719109733284,7.15019295,64521.0,64520.0,0.57863721]
[1719109733447,7.24852886,64521.0,64520.0,0.57863721]
[1719109733652,7.25686452,64521.0,64520.0,0.57863721]
[1719109733845,7.28841043,64521.0,64520.0,0.57863721]
[1719109734288,7.35520081,64521.0,64520.0,0.57863721]
[1719109734867,7.66527867,64521.0,64520.0,0.5539439]
[1719109736498,7.66564949,64521.0,64520.0,0.5539439]
[1719109738183,7.66564949,64521.0,64520.0,0.5489439]
[1719109739620,7.59901059,64521.0,64520.0,0.5489439]
[1719109739832,7.80496699,64521.0,64520.0,0.5489439]
[1719109740460,3.22288699,64521.0,64520.0,0.5489439]
[1719109741087,8.10761299,64521.0,64520.0,0.5489439]
[1719109741915,8.10784488,64521.0,64520.0,0.5489439]
[1719109742265,8.10784488,64521.0,64520.0,0.54513583]
[1719109742266,8.13981496,64521.0,64520.0,0.54513583]
[1719109742469,8.13981496,64521.0,64520.0,0.54011585]
[1719109742470,8.10784472,64521.0,64520.0,0.54011585]
[1719109743298,8.10784472,64521.0,64520.0,0.53511585]
[1719109743511,8.10787357,64521.0,64520.0,0.53511585]
[1719109744793,8.10787357,64521.0,64520.0,0.51011585]
[1719109744996,8.10784941,64521.0,64520.0,0.51011585]
[1719109748110,8.07611572,64521.0,64520.0,0.51011585]
[1719109748458,8.10820755,64521.0,64520.0,0.51011585]
[1719109749046,7.96936591,64521.0,64520.0,0.51011585]
[1719109750406,7.96936591,64521.0,64520.0,0.50511585]
[1719109751193,7.9693282,64521.0,64520.0,0.50511585]
[1719109751352,8.11936342,64521.0,64520.0,0.50511585]
[1719109751554,7.76281495,64521.0,64520.0,0.50511585]
[1719109751901,8.0872851,64521.0,64520.0,0.48481585]
[1719109752070,8.11935774,64521.0,64520.0,0.48481585]
[1719109752655,7.76281495,64521.0,64520.0,0.48481585]
[1719109752854,7.96920692,64521.0,64520.0,0.48481585]
[1719109753283,7.57039192,64521.0,64520.0,0.48481585]
[1719109754446,7.57042611,64521.0,64520.0,0.48481585]
[1719109757464,7.57037229,64521.0,64520.0,0.48481585]
[1719109757662,7.53424829,64521.0,64520.0,0.48481585]
[1719109758166,7.49877029,64521.0,64520.0,0.48481585]
[1719109760627,7.30873829,64521.0,64520.0,0.48481585]
[1719109760824,7.16962179,64521.0,64520.0,0.48481585]
[1719109761024,7.30869863,64521.0,64520.0,0.48481585]
[1719109763473,7.10236595,64521.0,64520.0,0.48481585]
[1719109763700,7.30875949,64521.0,64520.0,0.48481585]
[1719109766771,7.16955543,64521.0,64520.0,0.48481585]
[1719109766981,7.20150893,64521.0,64520.0,0.48481585]
[1719109767184,7.37573447,64521.0,64520.0,0.48481585]
[1719109769571,7.30854499,64521.0,64520.0,0.48481585]
[1719109769775,7.10236595,64521.0,64520.0,0.48481585]
[1719109769969,7.30848589,64521.0,64520.0,0.48481585]
[1719109770343,7.38357125,64521.0,64520.0,0.48481585]
[1719109770480,7.24131605,64521.0,64520.0,0.48481585]
[1719109770683,7.23339977,64521.0,64520.0,0.48481585]
[1719109771083,7.34041682,64521.0,64520.0,0.48481585]
[1719109771285,7.34061277,64521.0,64520.0,0.48481585]
[1719109771509,7.32632677,64521.0,64520.0,0.48481585]
[1719109772956,7.12001244,64521.0,64520.0,0.48481585]
[1719109773164,7.32603762,64521.0,64520.0,0.48481585]
[1719109776103,7.32629085,64521.0,64520.0,0.48481585]
[1719109779216,7.22699509,64521.0,64520.0,0.48481585]
[1719109779417,7.326016,64521.0,64520.0,0.48481585]
[1719109779623,7.32601606,64521.0,64520.0,0.48481585]
[1719109779851,7.32601609,64521.0,64520.0,0.48481585]
[1719109782111,7.32601609,64521.0,64520.0,0.45981585]
[1719109783731,7.18120602,64521.0,64520.0,0.45981585]
[1719109788491,6.97520237,64521.0,64520.0,0.45981585]
[1719109788697,7.18089059,64521.0,64520.0,0.45981585]
[1719109788904,7.08208877,64521.0,64520.0,0.45981585]
[1719109789097,7.1491109,64521.0,64520.0,0.45981585]
[1719109789356,7.33344465,64521.0,64520.0,0.45981585]
[1719109790838,7.18053314,64521.0,64520.0,0.45981585]
[1719109791598,7.18046593,64521.0,64520.0,0.45981585]
[1719109791810,7.02791179,64521.0,64520.0,0.45981585]
[1719109793265,7.05091179,64521.0,64520.0,0.45981585]
[1719109794623,7.05035067,64521.0,64520.0,0.45981585]
[1719109797661,7.05026561,64521.0,64520.0,0.45981585]
[1719109797973,7.29236561,64521.0,64520.0,0.36035498]
[1719109798189,7.29236561,64521.0,64520.0,0.33225257]
[1719109798347,7.59458724,64521.0,64520.0,0.05291372]
[1719109798545,7.59458724,64521.0,64520.0,0.02191572]
[1719109799166,7.55521909,64521.0,64520.0,7.2e-07]
[1719109799373,4.14906962,64521.0,64520.0,7.2e-07]
[1719109799590,4.08229142,64521.0,64520.0,7.2e-07]
[1719109800630,4.08229142,64521.0,64511.0,0.08820072]
[1719109800631,1.925104,64512.0,64511.0,0.08820072]
[1719109800841,7.20433712,64512.0,64511.0,0.08820072]
[1719109801089,7.23614354,64512.0,64511.0,0.08820072]
[1719109801423,7.43614354,64512.0,64511.0,0.08820072]
[1719109801713,7.66505916,64512.0,64511.0,0.08820072]
[1719109801881,7.8176133,64512.0,64511.0,0.08820072]
[1719109802027,7.9245184,64512.0,64511.0,0.02820072]
[1719109802233,7.9385184,64512.0,64511.0,0.02820072]
[1719109802474,7.9385184,64512.0,64509.0,0.1091]
[1719109802475,1.41513,64510.0,64509.0,0.10030072]
[1719109802655,6.67426954,64510.0,64509.0,0.10030072]
[1719109803059,6.78006902,64510.0,64509.0,0.10030072]
[1719109803721,1.89534302,64510.0,64509.0,0.06030072]